Cogmind - Beta 14 @@@ ROGUE MODE // 2024.11.15 @ 17:02:39 Player: SpewHard Result: Destroyed by as-62512 with Assembled Heavy Rifle Performance ------------- Evolutions (0) 0 Regions Visited (2) 400 Robots Destroyed (11) 55 Value Destroyed (356) 356 Prototype IDs (0) 0 Alien Tech Used (0) 0 Bonus (0) 0 TOTAL SCORE: 811 Bonus ------- None Cogmind --------- Core Integrity 0/250 Matter 290/300 Energy 88/100 System Corruption 0% Temperature Cool (1) Movement Hovering (80) Location -10/Mines Parts ------- > --- POWER (1) -------- (None) > --- PROPULSION (2) --- Combat Airjet > --- UTILITY (2) ------ Visual Processing Unit Core Shielding > --- WEAPON (2) ------- Small Laser Small Laser > --- INVENTORY (5) ---- Light Ion Engine Light Ion Engine Sensor Array Hacking Suite Peak State ------------ > --- POWER ------------ Light Nuclear Core > --- PROPULSION ------- Aluminum Leg Aluminum Leg > --- UTILITY ---------- Visual Processing Unit Core Shielding > --- WEAPON ----------- Small Laser Particle Gun > --- INVENTORY -------- Light Ion Engine Light Ion Engine Sensor Array Hacking Suite Small Laser [Rating: 11] Favorites ----------- Power Ion Engine Engine Ion Engine Power Core Light Nuclear Core Propulsion Wheel Leg Aluminum Leg Wheel Wheel Hover Unit Combat Airjet Utility Visual Processing Unit Device Sensor Array Processor Visual Processing Unit Protection Core Shielding Weapon Assault Rifle Energy Gun Small Laser Ballistic Gun Assault Rifle Special Melee Weapon Datajack Build | -11 -10 -10 ------- Run | Yrd Mat Min Slots Evolved . | . . . Power . | . . . Propulsion . | . . . Utility . | . . . Weapon . | . . . Parts Attached 24 | 6 10 8 Power 3 | . 2 1 Engine 2 | . 2 . Core 1 | . . 1 Reactor . | . . . Propulsion 7 | 3 . 4 Treads . | . . . Leg 4 | 1 . 3 Wheel 2 | 2 . . Hover 1 | . . 1 Flight . | . . . Utility 4 | 1 3 . Device 2 | 1 1 . Storage . | . . . Processor 1 | . 1 . Hackware . | . . . Protection 1 | . 1 . Artifact . | . . . Weapon 10 | 2 5 3 Energy Gun 4 | . 1 3 Energy Cannon . | . . . Ballistic Gun 4 | 2 2 . Ballistic Cannon . | . . . Launcher . | . . . Special Weapon . | . . . Impact Weapon . | . . . Slashing Weapon . | . . . Piercing Weapon . | . . . Special Melee Weapon 2 | . 2 . Unidentified Prototypes . | . . . Parts Lost 6 | . 1 5 Power 1 | . . 1 Propulsion 2 | . . 2 Utility . | . . . Weapon 3 | . 1 2 Highest Loss Streak 3 | . 1 3 To Critical Strikes . | . . . Average Slot Usage (%) 93 | . 97 85 Engine 11 | . 13 7 Leg 3 | . . 10 Wheel 21 | . 28 7 Device 8 | . 13 . Processor 11 | . 10 14 Protection 6 | . 3 14 Energy Gun 10 | . 4 21 Ballistic Gun 16 | . 23 3 Peak Build Rating 11 | 7 9 11 Average Rating 7 | 2 8 8 On Entrance 5 | . 7 8 Naked Turns . | . . . Heaviest Build 11 | 5 11 10 Greatest Support 20 | 20 20 20 Greatest Overweight (x) . | . . . Average Overweight (x) . | . . . Largest Inventory Capacity 5 | 5 5 5 Average Capacity 5 | 5 5 5 Most Carried 5 | 4 5 5 Average Carried 4 | 2 4 4 Final Capacity 5 | 5 5 5 Final Carried 5 | 3 5 4 Class Distribution -------------------- 85% | Mutant 14% | Scavenger-Mutant Dominant Class ---------------- Mutant | -10/Materials Scavenger-Mutant | -10/Mines Resources | -11 -10 -10 ----------- Run | Yrd Mat Min Matter Collected 571 | 308 188 75 Remotely . | . . . Salvage Created 395 | 65 233 97 Parts 28 | 5 17 6 Haulers Intercepted . | . . . Recyclers Shooed . | . . . Parts Field Recycled . | . . . Retrieved Matter . | . . . Parts Self-Destructed . | . . . Prevented . | . . . Kills | -11 -10 -10 ------- Run | Yrd Mat Min Combat Hostiles Destroyed 8 | 1 4 3 Guns 8 | 1 4 3 Classes Destroyed 5 | 2 2 1 Tunneler 1 | 1 . . Operator 1 | . 1 . Watcher 1 | . 1 . Grunt 7 | 1 4 2 Demolisher 1 | . . 1 Best Kill Streak 4 | 2 4 1 Combat Bots Only 4 | 1 4 1 Max Kills in Single Turn 1 | 1 1 1 Gunslinging . | . . . Exploded . | . . . Melee . | . . . Uniques/NPCs Destroyed . | . . . Combat | -11 -10 -10 -------- Run | Yrd Mat Min Hostile Shots Fired 73 | 11 24 38 Missed 19 | 4 7 8 Damage Taken 933 | 77 205 651 Core 253 | 20 37 196 Absorbed by Shields . | . . . Redirected to Shielding 43 | . . 43 Core Remaining (%) 92 | 92 . . Volleys Fired 48 | 8 18 22 Largest 2 | 2 2 2 Hottest 105 | 40 60 105 Shots Fired 92 | 16 36 40 Gun 92 | 16 36 40 Cannon . | . . . Launcher . | . . . Special . | . . . Kinetic 58 | 16 32 10 Thermal 34 | . 4 30 Explosive . | . . . Electromagnetic . | . . . Robot Hit Streak 8 | 4 4 8 Robot Miss Streak 4 | 2 3 4 Penetration Max . | . . . Secondary Targets . | . . . Shots Hit Robots 45 | 10 18 17 Core Hits 25 | 3 13 9 Critical Kills . | . . . Critical Parts Destroyed . | . . . Critical Strikes 1 | . . 1 Burn 1 | . . 1 Melee Attacks 1 | . 1 . Impact . | . . . Slashing . | . . . Piercing . | . . . Sneak Attacks 1 | . 1 . Combat Hostiles . | . . . Follow-up Attacks . | . . . Damage Inflicted 718 | 149 227 342 Guns 713 | 149 227 337 Cannons . | . . . Explosions . | . . . Melee . | . . . Ramming 5 | . . 5 Kinetic 430 | 149 205 76 Thermal 283 | . 22 261 Explosive . | . . . Electromagnetic . | . . . Impact . | . . . Slashing . | . . . Piercing . | . . . Highest Corruption . | . . . Average Corruption . | . . . Corruption Purged . | . . . Corruption Blocked . | . . . Overload Shots . | . . . Overflow Damage . | . . . Projectiles . | . . . Explosions . | . . . Melee . | . . . Knockbacks . | . . . Impact . | . . . Kinetic . | . . . Secondary . | . . . Self-Inflicted Damage 2 | . . 2 Shots . | . . . Rammed 2 | . . 2 Targets Rammed 2 | . . 2 Kicked . | . . . Crushed . | . . . Highest Temperature 180 | . 9 180 Average Temperature 60 | . 4 69 Received Heat Transfer 297 | 42 102 153 Siege Activations . | . . . Robots Corrupted . | . . . Combat Hostiles . | . . . Parts Fried . | . . . Impact Corruptions . | . . . Robots Melted . | . . . Combat Hostiles . | . . . Parts Melted . | . . . Heat Transferred 721 | . 50 671 Parts Sabotaged . | . . . Parts Stolen . | . . . Parts Stripped . | . . . Power Chain Reactions . | . . . Alert | -11 -10 -10 ------- Run | Yrd Mat Min Peak Influence 133 | 25 133 81 Initial 51 | . 16 51 Average 50 | 4 57 66 Maximum Alert Level . | . . . Low Security (%) 100 | 100 100 100 Level 1 . | . . . Level 2 . | . . . Level 3 . | . . . Level 4 . | . . . Level 5 . | . . . High Security . | . . . Max Security . | . . . Squads Dispatched 1 | . 1 . Investigation . | . . . Extermination . | . . . Reinforcement 1 | . 1 . Assault . | . . . Garrison . | . . . Intercept . | . . . Searches Triggered . | . . . Construction Impeded . | . . . Haulers Reinforced . | . . . Active Scanning Responses . | . . . Cargo Convoy Interrupts . | . . . Stealth | -11 -10 -10 --------- Run | Yrd Mat Min Distress Signals . | . . . Communications Jammed . | . . . Distress Signals . | . . . Times Spotted 17 | 1 8 8 Peak Tracking Total 3 | 1 3 2 Tactical Retreats 1 | . . 1 Traps | -11 -10 -10 ------- Run | Yrd Mat Min Traps Triggered . | . . . Indirectly . | . . . Trap Hack Attempts . | . . . Triggered . | . . . Disarmed . | . . . Reprogrammed . | . . . Reused . | . . . Traps Extracted . | . . . Installed . | . . . Triggered . | . . . Machines | -11 -10 -10 ---------- Run | Yrd Mat Min Machines Disabled . | . . . Max in Single Turn . | . . . Machines Repaired . | . . . Machines Dismantled . | . . . Machines Sabotaged . | . . . Overloaded Fab Kills . | . . . Hacking | -11 -10 -10 --------- Run | Yrd Mat Min Machines Accessed 2 | . 2 . Terminals 2 | . 2 . Fabricators . | . . . Repair Stations . | . . . Recycling Units . | . . . Scanalyzers . | . . . Garrison Access . | . . . Total Hacks 3 | . 3 . Successful 2 | . 2 . Failed 1 | . 1 . Catastrophic 1 | . 1 . Database Lockouts . | . . . Manual . | . . . Terminals 3 | . 3 . Fabricators . | . . . Repair Stations . | . . . Recycling Units . | . . . Scanalyzers . | . . . Garrison Access . | . . . Terminal Hacks 2 | . 2 . Alert Level 1 | . 1 . Reinforcement Status 1 | . 1 . Fabricator Hacks . | . . . Repair Station Hacks . | . . . Recycling Unit Hacks . | . . . Scanalyzer . | . . . Garrison Access Hacks . | . . . Unauthorized Hacks . | . . . Terminals . | . . . Fabricators . | . . . Repair Stations . | . . . Recycling Units . | . . . Scanalyzers . | . . . Garrison Access . | . . . Data Cores Recovered 1 | . 1 . Used 1 | . 1 . Hacking Detections 1 | . 1 . Full Trace Events . | . . . Feedback Events . | . . . Feedback Blocked . | . . . Robot Schematics Acquired . | . . . Robots Built . | . . . Authchips . | . . . Time . | . . . Total Robot Build Rating . | . . . Part Schematics Acquired . | . . . Parts Built . | . . . Authchips . | . . . Time . | . . . Total Part Build Rating . | . . . Parts Repaired . | . . . Time . | . . . Parts Recycled . | . . . Recycled Matter . | . . . Retrieved Matter . | . . . Retrieved Components . | . . . Parts Scanalyzed . | . . . Part Schematics Acquired . | . . . Parts Damaged . | . . . Bothacking | -11 -10 -10 ------------ Run | Yrd Mat Min Used RIF Installer . | . . . Robots Hacked 1 | . 1 . Non-combat 1 | . 1 . Combat . | . . . Robot Hacks Applied 1 | . 1 . parse_system 1 | . 1 . Relay Couplers Released . | . . . Fabnet Peak Effective % . | . . . Robots Rewired . | . . . Allies Hacked . | . . . Hacks Repelled . | . . . Allies | -11 -10 -10 -------- Run | Yrd Mat Min Total Allies . | . . . Largest Group . | . . . Highest-Rated Group . | . . . Highest-Rated Ally . | . . . Total Orders . | . . . Ally Attacks . | . . . Total Damage . | . . . Kills . | . . . Allies Corrupted . | . . . Allies Melted . | . . . Intel | -11 -10 -10 ------- Run | Yrd Mat Min Robot Analysis Total . | . . . Derelict Logs Recovered 1 | . . 1 Drone Launches . | . . . Drone Recoveries . | . . . Exploration | -11 -10 -10 ------------- Run | Yrd Mat Min Turns Passed 571 | 107 303 161 Spaces Moved 423 | 96 245 82 Core 26 | 26 . . Treads . | . . . Legs 36 | 5 . 31 Wheels 341 | 65 245 31 Hover 20 | . . 20 Flight . | . . . Fastest Speed 50 | 50 80 80 Average Speed 81 | 73 80 95 Slowest Speed 120 | 120 80 120 Overloaded Moves . | . . . Propulsion Burnouts . | . . . Robots Hopped . | . . . Cave-ins Triggered . | . . . Exploration Rate (%) 18 | 5 35 16 Regions Visited 2 Branch Regions 1 Pre-discovered Areas 1 | . . 1 Known Exits Taken . | . . . Unknown Exits Taken 2 | 1 1 . Scrap Searched . | . . . Spaces Dug . | . . . Terrain Destroyed . | . . . Melee . | . . . Projectile . | . . . AOE . | . . . Terrain Rammed . | . . . Walls Destroyed . | . . . Machines Disabled . | . . . Actions | -11 -10 -10 --------- Run | Yrd Mat Min Total 553 | 114 314 125 Wait 35 | . 28 7 Move 421 | 95 244 82 Hop . | . . . Pick Up 12 | 4 8 . Fast Attach 9 | 4 1 4 Attach 6 | 2 3 1 Detach 1 | 1 . . Swap 9 | . 6 3 Drop 9 | . 5 4 Fire 48 | 8 18 22 Melee 1 | . 1 . Ram 2 | . . 2 Kick . | . . . Crush . | . . . Escape Stasis . | . . . Rewire . | . . . Trap . | . . . Miscellaneous . | . . . Route ------- -11/Scrapyard -10/Materials (discovered 2 exits: [*Min x2]) -10/Mines (discovered 1 exit: [*Mat]) History --------- Turn | Location | Event 2 | -11/Scrapyard | Met Revision 17 65 | -11/Scrapyard | Discovered new exit (range 8) 108 | -11/Scrapyard | Entered Materials 301 | -10/Materials | Build established: Mutant 369 | -10/Materials | Discovered new exit (range 11) 405 | -10/Materials | Discovered new exit (range 4) 411 | -10/Materials | Entered Mines 420 | -10/Mines | Discovered new exit (range 10) 505 | -10/Mines | Learned location of Zion (-7) 515 | -10/Mines | Assembled infested the area 520 | -10/Mines | Assisted by a Guerilla fighting off Assembled 526 | -10/Mines | Core integrity fell below 50% 536 | -10/Mines | Core integrity fell below 20% 572 | -10/Mines | Destroyed by as-62512 with Assembled Heavy Rifle Last Messages --------------- HV Slug penetrates D-53 Grenadier. D-53 Grenadier suffers critical hit (Destroy). U-05 Engineer lays Concrete. V5-091(h) destroyed. U-05 Engineer destroyed. D-53 Grenadier suffers critical hit (Burn). R-06 Scavenger destroyed. The unstable cave ceiling collapses. Aluminum Leg destroyed. D-53 Grenadier destroyed. Acquired 10 matter. K-01 Serf collects debris. Acquired Cmb. Airjet. Particle Gun destroyed. The unstable cave ceiling collapses. K-01 Serf collects debris. Acquired 5 matter. The unstable cave ceiling collapses. Slammed into K-01 Serf. Dropped Aluminum Leg. Map ----- +----------------------------------------------------+ | ??????????????????????????????????????? | | ??????????????????????????????????????? | | ??????????????????????????????????????? | | ??????????????????????????????????????? | | ??????????????????????????????????????? | | ??????????????????????????????????????? | | ??????????????????????????????????????? | | ???????????????????????????????######?? | | ???????????????????????????????# #?? | | ????????????????????????????#### #?? | | ????????????????????????????# #?? | | ????????????????????????????# ## #?? | | ????????????????????????????# ## #?? | | ????????????????????????##### ## #?? | | ????????????????????????# ## #?? | | ????????????????????????# ###### #?? | | ????????????????????????# #????# #?? | | ????? ??????????????????#!#????# #?? | | ????? ?????????????????#%#????######?? | | ?????? ????????????????#=#???????????? | | ??????? ?????????????###*####????????? | | ???????? ????????????# = #????????? | | ?????????# ???????????# #????????? | | ?????????# ########??# =< #????????? | | ????????## #### #????????? | | ????????# ## @ #????????? | | ????????# ### ### ####????????? | | ????????# % #?# #???????????? | | ?????????# ###a###?????????? | | ?????????# % "a ### #???? | | ?????????# !% * #???? | | ?????????### = ## #???? | | ???????????## ! #### ####???? | | ????????????# #####???# ##??????? | | ???????????# ?????????####???????? | | ?????????? ????????????????????? | | ???????? """ ????????????????????? | | ??????? """ ????????????????????? | | ?????? """ ????????????????????? | | ?????## ? ????????????????????? | | ??????????###### ????????????????????? | | ???????????????##?????????????????????? | | ??????????????????????????????????????? | | ??????????????????????????????????????? | | ??????????????????????????????????????? | | ??????????????????????????????????????? | | ??????????????????????????????????????? | | ??????????????????????????????????????? | | | | | +----------------------------------------------------+ Best States ------------- Heat Dissipation 25 Energy Generation 14 Energy Capacity 250 Matter Stores 300 Matter Capacity 300 Sight Range 18 Robot Scan Range 14 Terrain Scan Range 16 Terrain Scan Density 10 Core Shielding 20 Evasion (%) 55 Item Schematics ----------------- None Robot Schematics ------------------ None Fabricated ------------ Nothing Alien Tech Used ----------------- None Achievements -------------- Dynamic Key Challenges ------------ None Game ------ Seed VariableReactiveWeb Manual? 0 Play Time 00:15:10 Cumulative 0.9 hours Start 2024.11.15 @ 16:49:56 End 2024.11.15 @ 17:02:39 Sessions 1 Manual Loads 0 Difficulty Rogue Special Mode None Game No. 3 Rogue 3 Adventurer 0 Explorer 0 Win Type - Total 0 Types 0/0/0/0/0/0/0/0/0 Lore% 0 Gallery% 3 Achievement% 3 Wizard Run 0 Options --------- Layout 1 ASCII 0 Keyboard 0 Movement Arrows Keybinds 0 Fullscreen 1 Font 24/Terminus Map View 50x35 Zoom Use 0% Tactical HUD 0 Map Filters NONE Filters NONE Steam 1 RUN: f6148c31-7d4e-499b-b88b-deee941176a8